[Event "Titled Tuesday Blitz September 13 Early 2022"]
[White "Sorkin, Igor"]
[Black "Bachmann, Axel"]
[WhiteFideId "2803283"]
[BlackFideId "3700488"]
[WhiteElo "2401"]
[BlackElo "2595"]
[Result "0-1"]
[Round "06"]
[TimeControl "180+1"]
[Date "2022.09.13"]
[WhiteClock "0:00:09"]
[BlackClock "0:00:28"]

1. d4 {[%clk 0:03:00]}  Nf6 {[%clk 0:02:59]} 2. Nf3 {[%clk 0:03:00]}  g6 {[%clk 0:02:57]} 3. c4 {[%clk 0:03:00]}  Bg7 {[%clk 0:02:57]} 4. Nc3 {[%clk 0:03:01]}  d6 {[%clk 0:02:57]} 5. e4 {[%clk 0:03:01]}  O-O {[%clk 0:02:56]} 6. Be2 {[%clk 0:03:01]}  Bg4 {[%clk 0:02:56]} 7. O-O {[%clk 0:03:00]}  Nfd7 {[%clk 0:02:57]} 8. Be3 {[%clk 0:03:00]}  c5 {[%clk 0:02:55]} 9. d5 {[%clk 0:02:57]}  Na6 {[%clk 0:02:55]} 10. Ne1 {[%clk 0:02:56]}  Bxe2 {[%clk 0:02:53]} 11. Qxe2 {[%clk 0:02:57]}  Nc7 {[%clk 0:02:53]} 12. a4 {[%clk 0:02:50]}  e6 {[%clk 0:02:51]} 13. Nd3 {[%clk 0:02:50]}  exd5 {[%clk 0:02:45]} 14. exd5 {[%clk 0:02:49]}  Re8 {[%clk 0:02:43]} 15. Qd2 {[%clk 0:02:49]}  Nf6 {[%clk 0:02:34]} 16. Bg5 {[%clk 0:02:12]}  Qd7 {[%clk 0:02:21]} 17. Qf4 {[%clk 0:02:12]}  Ng4 {[%clk 0:02:09]} 18. h3 {[%clk 0:01:40]}  Ne5 {[%clk 0:02:00]} 19. Nxe5 {[%clk 0:01:38]}  Rxe5 {[%clk 0:02:01]} 20. Qd2 {[%clk 0:01:34]}  Rae8 {[%clk 0:01:54]} 21. Bf4 {[%clk 0:01:34]}  R5e7 {[%clk 0:01:53]} 22. Rfe1 {[%clk 0:01:32]}  Be5 {[%clk 0:01:29]} 23. Bxe5 {[%clk 0:00:54]}  Rxe5 {[%clk 0:01:30]} 24. Rxe5 {[%clk 0:00:54]}  Rxe5 {[%clk 0:01:31]} 25. Re1 {[%clk 0:00:54]}  Qe8 {[%clk 0:01:24]} 26. Rxe5 {[%clk 0:00:54]}  Qxe5 {[%clk 0:01:25]} 27. Qe2 {[%clk 0:00:54]}  Qxe2 {[%clk 0:01:23]} 28. Nxe2 {[%clk 0:00:54]}  Na6 {[%clk 0:01:23]} 29. Nc3 {[%clk 0:00:53]}  Kf8 {[%clk 0:01:13]} 30. Kf1 {[%clk 0:00:52]}  Nb4 {[%clk 0:01:09]} 31. Ke2 {[%clk 0:00:47]}  Ke7 {[%clk 0:01:09]} 32. Kd2 {[%clk 0:00:46]}  f5 {[%clk 0:01:08]} 33. f4 {[%clk 0:00:45]}  Na6 {[%clk 0:01:05]} 34. Nb5 {[%clk 0:00:44]}  Nb8 {[%clk 0:00:58]} 35. Nxa7 {[%clk 0:00:44]}  Kd8 {[%clk 0:00:55]} 36. Nb5 {[%clk 0:00:44]}  Ke7 {[%clk 0:00:54]} 37. Nc7 {[%clk 0:00:40]}  Nd7 {[%clk 0:00:51]} 38. Ke3 {[%clk 0:00:29]}  Nf6 {[%clk 0:00:50]} 39. Nb5 {[%clk 0:00:24]}  Ne4 {[%clk 0:00:48]} 40. g4 {[%clk 0:00:22]}  Kd7 {[%clk 0:00:48]} 41. g5 {[%clk 0:00:16]}  Ke7 {[%clk 0:00:41]} 42. h4 {[%clk 0:00:16]}  Kd7 {[%clk 0:00:41]} 43. Na3 {[%clk 0:00:16]}  Kc7 {[%clk 0:00:40]} 44. Nb5+ {[%clk 0:00:11]}  Kb6 {[%clk 0:00:40]} 45. b3 {[%clk 0:00:10]}  Ka5 {[%clk 0:00:39]} 46. Nc7 {[%clk 0:00:10]}  Kb4 {[%clk 0:00:38]} 47. Ne6 {[%clk 0:00:11]}  Kxb3 {[%clk 0:00:37]} 48. Nf8 {[%clk 0:00:11]}  Kxc4 {[%clk 0:00:37]} 49. Nxh7 {[%clk 0:00:12]}  Ng3 {[%clk 0:00:31]} 50. Nf8 {[%clk 0:00:11]}  Kb3 {[%clk 0:00:31]} 51. Nxg6 {[%clk 0:00:11]}  c4 {[%clk 0:00:32]} 52. Ne5 {[%clk 0:00:07]}  dxe5 {[%clk 0:00:29]} 53. d6 {[%clk 0:00:07]}  c3 {[%clk 0:00:29]} 54. d7 {[%clk 0:00:07]}  c2 {[%clk 0:00:29]} 55. d8=Q {[%clk 0:00:08]}  c1=Q+ {[%clk 0:00:29]} 56. Qd2 {[%clk 0:00:09]}  exf4+ {[%clk 0:00:28]} 0-1


[Site "https://www.chess.com"]

[Event "Titled Tuesday Blitz September 13 Early 2022"]
[White "Xiong, Jeffery"]
[Black "Ter-Sahakyan, Samvel"]
[WhiteFideId "2047640"]
[BlackFideId "13302531"]
[WhiteElo "2714"]
[BlackElo "2604"]
[Result "1/2-1/2"]
[Round "06"]
[TimeControl "180+1"]
[Date "2022.09.13"]
[WhiteClock "0:00:36"]
[BlackClock "0:00:54"]

1. e4 {[%clk 0:03:00]}  c6 {[%clk 0:02:59]} 2. d4 {[%clk 0:02:58]}  d5 {[%clk 0:02:59]} 3. exd5 {[%clk 0:02:59]}  cxd5 {[%clk 0:02:59]} 4. c4 {[%clk 0:03:00]}  Nf6 {[%clk 0:02:58]} 5. Nc3 {[%clk 0:03:00]}  e6 {[%clk 0:02:54]} 6. Nf3 {[%clk 0:03:00]}  Bb4 {[%clk 0:02:54]} 7. cxd5 {[%clk 0:03:00]}  Nxd5 {[%clk 0:02:54]} 8. Bd2 {[%clk 0:03:00]}  Bd7 {[%clk 0:02:40]} 9. Nxd5 {[%clk 0:01:59]}  Bxd2+ {[%clk 0:02:40]} 10. Qxd2 {[%clk 0:02:00]}  exd5 {[%clk 0:02:40]} 11. Bd3 {[%clk 0:01:45]}  Qe7+ {[%clk 0:02:36]} 12. Qe3 {[%clk 0:01:45]}  Qxe3+ {[%clk 0:02:25]} 13. fxe3 {[%clk 0:01:46]}  Nc6 {[%clk 0:02:17]} 14. Kd2 {[%clk 0:01:43]}  f6 {[%clk 0:01:57]} 15. Rac1 {[%clk 0:01:40]}  Ke7 {[%clk 0:01:47]} 16. e4 {[%clk 0:01:22]}  dxe4 {[%clk 0:01:46]} 17. Bxe4 {[%clk 0:01:23]}  Kd6 {[%clk 0:01:34]} 18. Rhe1 {[%clk 0:01:17]}  Rad8 {[%clk 0:01:23]} 19. Rc3 {[%clk 0:00:55]}  g6 {[%clk 0:01:12]} 20. Rb3 {[%clk 0:00:37]}  Na5 {[%clk 0:01:05]} 21. Rc3 {[%clk 0:00:36]}  Nc6 {[%clk 0:01:05]} 22. Rb3 {[%clk 0:00:36]}  Na5 {[%clk 0:00:55]} 23. Rc3 {[%clk 0:00:36]}  Nc6 {[%clk 0:00:54]} 1/2-1/2


[Site "https://www.chess.com"]

[Event "Titled Tuesday Blitz September 13 Early 2022"]
[White "Zierk, Steven"]
[Black "Maksimovic, Bojan"]
[WhiteFideId "2034255"]
[BlackFideId "14408120"]
[WhiteElo "2494"]
[BlackElo "2447"]
[Result "0-1"]
[Round "06"]
[TimeControl "180+1"]
[Date "2022.09.13"]
[WhiteClock "0:00:10"]
[BlackClock "0:00:05"]

1. e4 {[%clk 0:03:00]}  g6 {[%clk 0:02:59]} 2. d4 {[%clk 0:03:00]}  Bg7 {[%clk 0:03:00]} 3. Nc3 {[%clk 0:03:01]}  d6 {[%clk 0:03:00]} 4. Be3 {[%clk 0:03:01]}  a6 {[%clk 0:03:01]} 5. h4 {[%clk 0:03:00]}  h5 {[%clk 0:03:00]} 6. Nf3 {[%clk 0:02:59]}  b5 {[%clk 0:03:00]} 7. Ng5 {[%clk 0:02:59]}  Nf6 {[%clk 0:02:40]} 8. e5 {[%clk 0:02:53]}  dxe5 {[%clk 0:01:46]} 9. Qf3 {[%clk 0:02:42]}  exd4 {[%clk 0:01:33]} 10. Qxa8 {[%clk 0:02:17]}  dxe3 {[%clk 0:01:23]} 11. fxe3 {[%clk 0:02:16]}  Nbd7 {[%clk 0:01:22]} 12. O-O-O {[%clk 0:02:02]}  O-O {[%clk 0:01:22]} 13. Be2 {[%clk 0:02:00]}  c5 {[%clk 0:01:20]} 14. Nd5 {[%clk 0:01:48]}  e6 {[%clk 0:01:19]} 15. Qxc8 {[%clk 0:01:35]}  exd5 {[%clk 0:01:12]} 16. Qxd8 {[%clk 0:01:33]}  Rxd8 {[%clk 0:01:13]} 17. Rhf1 {[%clk 0:01:29]}  Ne5 {[%clk 0:01:12]} 18. Kb1 {[%clk 0:01:23]}  Rd7 {[%clk 0:00:59]} 19. a4 {[%clk 0:01:21]}  bxa4 {[%clk 0:00:49]} 20. Bxa6 {[%clk 0:01:20]}  a3 {[%clk 0:00:50]} 21. bxa3 {[%clk 0:01:13]}  Ra7 {[%clk 0:00:49]} 22. Bc8 {[%clk 0:01:05]}  Rxa3 {[%clk 0:00:45]} 23. Bb7 {[%clk 0:00:51]}  Nc4 {[%clk 0:00:34]} 24. Nxf7 {[%clk 0:00:31]}  Ne4 {[%clk 0:00:28]} 25. c3 {[%clk 0:00:31]}  Nxc3+ {[%clk 0:00:23]} 26. Kc1 {[%clk 0:00:27]}  Ra1+ {[%clk 0:00:20]} 27. Kc2 {[%clk 0:00:27]}  Nxe3+ {[%clk 0:00:21]} 28. Kd3 {[%clk 0:00:22]}  Rxd1+ {[%clk 0:00:20]} 29. Rxd1 {[%clk 0:00:22]}  Nexd1 {[%clk 0:00:21]} 30. Ng5 {[%clk 0:00:21]}  c4+ {[%clk 0:00:21]} 31. Kd2 {[%clk 0:00:21]}  Nb2 {[%clk 0:00:16]} 32. Ne6 {[%clk 0:00:20]}  Bf6 {[%clk 0:00:15]} 33. Nf4 {[%clk 0:00:19]}  Ne4+ {[%clk 0:00:15]} 34. Ke3 {[%clk 0:00:18]}  Nc3 {[%clk 0:00:13]} 35. Nxg6 {[%clk 0:00:19]}  d4+ {[%clk 0:00:13]} 36. Kd2 {[%clk 0:00:19]}  d3 {[%clk 0:00:11]} 37. Bf3 {[%clk 0:00:18]}  Nca4 {[%clk 0:00:10]} 38. Bd5+ {[%clk 0:00:15]}  Kg7 {[%clk 0:00:09]} 39. Nf4 {[%clk 0:00:15]}  c3+ {[%clk 0:00:10]} 40. Ke3 {[%clk 0:00:15]}  c2 {[%clk 0:00:10]} 41. Kd2 {[%clk 0:00:13]}  Bxh4 {[%clk 0:00:10]} 42. Nxh5+ {[%clk 0:00:08]}  Kh6 {[%clk 0:00:10]} 43. Nf4 {[%clk 0:00:09]}  Bg5 {[%clk 0:00:10]} 44. g3 {[%clk 0:00:09]}  Bxf4+ {[%clk 0:00:10]} 45. gxf4 {[%clk 0:00:10]}  Nc3 {[%clk 0:00:07]} 46. Bb3 {[%clk 0:00:10]}  Nb1+ {[%clk 0:00:06]} 47. Kc1 {[%clk 0:00:10]}  d2+ {[%clk 0:00:05]} 0-1


[Site "https://www.chess.com"]

[Event "Titled Tuesday Blitz September 13 Early 2022"]
[White "assezde36"]
[Black "Rustemov, Alexander"]
[BlackFideId "4119002"]
[WhiteElo "2760"]
[BlackElo "2868"]
[Result "1-0"]
[Round "06"]
[TimeControl "180+1"]
[Date "2022.09.13"]
[WhiteClock "0:00:13"]
[BlackClock "0:00:04"]

1. Nf3 {[%clk 0:03:00]}  d5 {[%clk 0:02:59]} 2. e3 {[%clk 0:03:01]}  Nf6 {[%clk 0:02:59]} 3. c4 {[%clk 0:03:01]}  c6 {[%clk 0:03:00]} 4. Nc3 {[%clk 0:02:57]}  a6 {[%clk 0:02:59]} 5. b3 {[%clk 0:02:56]}  Bf5 {[%clk 0:02:56]} 6. Bb2 {[%clk 0:02:56]}  e6 {[%clk 0:02:56]} 7. Be2 {[%clk 0:02:53]}  h6 {[%clk 0:02:55]} 8. O-O {[%clk 0:02:51]}  Be7 {[%clk 0:02:55]} 9. d4 {[%clk 0:02:42]}  O-O {[%clk 0:02:54]} 10. Bd3 {[%clk 0:02:43]}  Bxd3 {[%clk 0:02:42]} 11. Qxd3 {[%clk 0:02:44]}  Nbd7 {[%clk 0:02:33]} 12. e4 {[%clk 0:02:44]}  dxe4 {[%clk 0:02:32]} 13. Nxe4 {[%clk 0:02:44]}  Nxe4 {[%clk 0:02:30]} 14. Qxe4 {[%clk 0:02:45]}  Re8 {[%clk 0:02:26]} 15. Rfd1 {[%clk 0:02:41]}  Qa5 {[%clk 0:02:25]} 16. a3 {[%clk 0:02:35]}  Rad8 {[%clk 0:02:24]} 17. Qc2 {[%clk 0:02:30]}  Qh5 {[%clk 0:02:22]} 18. h3 {[%clk 0:02:29]}  Bf6 {[%clk 0:02:20]} 19. Rd2 {[%clk 0:02:22]}  Nf8 {[%clk 0:02:20]} 20. Rad1 {[%clk 0:02:22]}  Rd7 {[%clk 0:02:14]} 21. Qe4 {[%clk 0:01:58]}  Red8 {[%clk 0:02:12]} 22. Qe2 {[%clk 0:01:41]}  Ng6 {[%clk 0:02:10]} 23. Bc3 {[%clk 0:01:38]}  Qf5 {[%clk 0:01:56]} 24. Qd3 {[%clk 0:01:24]}  Qxd3 {[%clk 0:01:55]} 25. Rxd3 {[%clk 0:01:25]}  e5 {[%clk 0:01:47]} 26. R3d2 {[%clk 0:01:00]}  e4 {[%clk 0:01:42]} 27. Nh2 {[%clk 0:00:59]}  c5 {[%clk 0:01:40]} 28. Ba5 {[%clk 0:00:57]}  cxd4 {[%clk 0:01:37]} 29. Bxd8 {[%clk 0:00:58]}  Rxd8 {[%clk 0:01:37]} 30. Ng4 {[%clk 0:00:57]}  d3 {[%clk 0:01:36]} 31. Nxf6+ {[%clk 0:00:55]}  gxf6 {[%clk 0:01:36]} 32. f3 {[%clk 0:00:56]}  f5 {[%clk 0:01:36]} 33. Kf2 {[%clk 0:00:50]}  h5 {[%clk 0:00:56]} 34. Ke3 {[%clk 0:00:30]}  Re8 {[%clk 0:00:52]} 35. fxe4 {[%clk 0:00:30]}  fxe4 {[%clk 0:00:50]} 36. Rf2 {[%clk 0:00:30]}  Kg7 {[%clk 0:00:39]} 37. Rdf1 {[%clk 0:00:30]}  Re7 {[%clk 0:00:39]} 38. Rf5 {[%clk 0:00:29]}  h4 {[%clk 0:00:39]} 39. Rg5 {[%clk 0:00:24]}  Kh6 {[%clk 0:00:38]} 40. Rgf5 {[%clk 0:00:23]}  Kg7 {[%clk 0:00:37]} 41. c5 {[%clk 0:00:23]}  Nf8 {[%clk 0:00:30]} 42. R5f4 {[%clk 0:00:20]}  f5 {[%clk 0:00:16]} 43. Rxf5 {[%clk 0:00:20]}  Nd7 {[%clk 0:00:16]} 44. b4 {[%clk 0:00:18]}  Ne5 {[%clk 0:00:09]} 45. Kxe4 {[%clk 0:00:13]}  Ng4+ {[%clk 0:00:09]} 46. Kxd3 {[%clk 0:00:12]}  Ne3 {[%clk 0:00:10]} 47. Rf7+ {[%clk 0:00:08]}  Rxf7 {[%clk 0:00:04]} 48. Rxf7+ {[%clk 0:00:09]}  Kxf7 {[%clk 0:00:04]} 49. Kxe3 {[%clk 0:00:10]}  Ke6 {[%clk 0:00:04]} 50. Ke4 {[%clk 0:00:10]}  Kf6 {[%clk 0:00:03]} 51. Kd5 {[%clk 0:00:07]}  Kf5 {[%clk 0:00:03]} 52. c6 {[%clk 0:00:07]}  bxc6+ {[%clk 0:00:02]} 53. Kxc6 {[%clk 0:00:08]}  Kf4 {[%clk 0:00:03]} 54. a4 {[%clk 0:00:09]}  Kg3 {[%clk 0:00:04]} 55. b5 {[%clk 0:00:10]}  Kxg2 {[%clk 0:00:05]} 56. bxa6 {[%clk 0:00:10]}  Kxh3 {[%clk 0:00:03]} 57. a7 {[%clk 0:00:11]}  Kg3 {[%clk 0:00:03]} 58. a8=Q {[%clk 0:00:11]}  h3 {[%clk 0:00:04]} 59. Qb8+ {[%clk 0:00:11]}  Kg2 {[%clk 0:00:03]} 60. a5 {[%clk 0:00:12]}  h2 {[%clk 0:00:04]} 61. Qxh2+ {[%clk 0:00:13]} 1-0


[Site "https://www.chess.com"]

[Event "Titled Tuesday Blitz September 13 Early 2022"]
[White "Bacrot, Etienne"]
[Black "Kamsky, Gata"]
[WhiteFideId "605506"]
[BlackFideId "2000024"]
[WhiteElo "2666"]
[BlackElo "2666"]
[Result "1-0"]
[Round "07"]
[TimeControl "180+1"]
[Date "2022.09.13"]
[WhiteClock "0:01:43"]
[BlackClock "0:01:36"]

1. e4 {[%clk 0:03:00]}  c5 {[%clk 0:02:57]} 2. Nf3 {[%clk 0:03:01]}  e6 {[%clk 0:02:56]} 3. d4 {[%clk 0:03:00]}  cxd4 {[%clk 0:02:56]} 4. Nxd4 {[%clk 0:03:01]}  a6 {[%clk 0:02:57]} 5. Nc3 {[%clk 0:03:00]}  b5 {[%clk 0:02:56]} 6. Bd3 {[%clk 0:02:59]}  Qb6 {[%clk 0:02:55]} 7. Nf3 {[%clk 0:02:57]}  Qc7 {[%clk 0:02:54]} 8. e5 {[%clk 0:02:54]}  Nc6 {[%clk 0:02:43]} 9. Bf4 {[%clk 0:02:52]}  Bb4 {[%clk 0:02:05]} 10. O-O {[%clk 0:02:52]}  Bxc3 {[%clk 0:02:04]} 11. bxc3 {[%clk 0:02:52]}  Nge7 {[%clk 0:02:03]} 12. Qd2 {[%clk 0:02:39]}  Bb7 {[%clk 0:01:58]} 13. Rfe1 {[%clk 0:02:37]}  Nd5 {[%clk 0:01:57]} 14. Bg3 {[%clk 0:02:35]}  Nce7 {[%clk 0:01:57]} 15. Qg5 {[%clk 0:02:24]}  O-O {[%clk 0:01:53]} 16. Bxh7+ {[%clk 0:02:20]}  Kxh7 {[%clk 0:01:49]} 17. Qh5+ {[%clk 0:02:20]}  Kg8 {[%clk 0:01:47]} 18. Ng5 {[%clk 0:02:20]}  Rfc8 {[%clk 0:01:44]} 19. Qxf7+ {[%clk 0:02:07]}  Kh8 {[%clk 0:01:43]} 20. Qh5+ {[%clk 0:01:48]}  Kg8 {[%clk 0:01:42]} 21. Qf7+ {[%clk 0:01:48]}  Kh8 {[%clk 0:01:42]} 22. Re4 {[%clk 0:01:43]}  Nf5 {[%clk 0:01:40]} 23. Rh4+ {[%clk 0:01:42]}  Nxh4 {[%clk 0:01:37]} 24. Qh5+ {[%clk 0:01:43]}  Kg8 {[%clk 0:01:37]} 25. Qh7+ {[%clk 0:01:43]}  Kf8 {[%clk 0:01:36]} 26. Qh8+ {[%clk 0:01:43]} 1-0


[Site "https://www.chess.com"]

[Event "Titled Tuesday Blitz September 13 Early 2022"]
[White "Beerdsen, Thomas"]
[Black "Pranav, V"]
[WhiteFideId "1030108"]
[BlackFideId "25060783"]
[WhiteElo "2567"]
[BlackElo "2390"]
[Result "1-0"]
[Round "07"]
[TimeControl "180+1"]
[Date "2022.09.13"]
[WhiteClock "0:01:18"]
[BlackClock "0:01:15"]

1. e4 {[%clk 0:03:00]}  c5 {[%clk 0:03:00]} 2. Nf3 {[%clk 0:03:01]}  Nc6 {[%clk 0:03:00]} 3. Bc4 {[%clk 0:03:00]}  d6 {[%clk 0:02:55]} 4. O-O {[%clk 0:02:58]}  Nf6 {[%clk 0:02:54]} 5. d4 {[%clk 0:02:55]}  cxd4 {[%clk 0:02:53]} 6. Nxd4 {[%clk 0:02:56]}  e5 {[%clk 0:02:48]} 7. Nxc6 {[%clk 0:02:46]}  bxc6 {[%clk 0:02:49]} 8. Nc3 {[%clk 0:02:39]}  Be7 {[%clk 0:02:48]} 9. f4 {[%clk 0:02:38]}  O-O {[%clk 0:02:45]} 10. Kh1 {[%clk 0:02:35]}  Bb7 {[%clk 0:02:24]} 11. fxe5 {[%clk 0:02:29]}  dxe5 {[%clk 0:02:25]} 12. Qe2 {[%clk 0:02:26]}  Ne8 {[%clk 0:02:17]} 13. Be3 {[%clk 0:02:20]}  Nd6 {[%clk 0:02:16]} 14. Bb3 {[%clk 0:02:19]}  a5 {[%clk 0:02:16]} 15. Qh5 {[%clk 0:02:15]}  Qc7 {[%clk 0:01:52]} 16. Qxe5 {[%clk 0:02:01]}  Kh8 {[%clk 0:01:52]} 17. Bxf7 {[%clk 0:01:42]}  Ba6 {[%clk 0:01:46]} 18. Bh6 {[%clk 0:01:29]}  Rg8 {[%clk 0:01:26]} 19. Bxg8 {[%clk 0:01:23]}  Rxg8 {[%clk 0:01:18]} 20. Rf7 {[%clk 0:01:19]}  Bf6 {[%clk 0:01:15]} 21. Rxf6 {[%clk 0:01:18]} 1-0


[Site "https://www.chess.com"]

[Event "Titled Tuesday Blitz September 13 Early 2022"]
[White "Bortnyk, Olexandr"]
[Black "Livaic, Leon"]
[WhiteFideId "14120828"]
[BlackFideId "14531534"]
[WhiteElo "2723"]
[BlackElo "2540"]
[Result "0-1"]
[Round "07"]
[TimeControl "180+1"]
[Date "2022.09.13"]
[WhiteClock "0:00:15"]
[BlackClock "0:00:17"]

1. e4 {[%clk 0:02:52]}  e6 {[%clk 0:02:59]} 2. d4 {[%clk 0:02:51]}  d5 {[%clk 0:03:00]} 3. c3 {[%clk 0:02:51]}  dxe4 {[%clk 0:02:59]} 4. Nd2 {[%clk 0:02:39]}  Nf6 {[%clk 0:02:56]} 5. f3 {[%clk 0:02:37]}  c5 {[%clk 0:02:46]} 6. Nb3 {[%clk 0:02:15]}  cxd4 {[%clk 0:02:41]} 7. Nxd4 {[%clk 0:02:15]}  Bc5 {[%clk 0:02:21]} 8. fxe4 {[%clk 0:02:08]}  Nxe4 {[%clk 0:02:09]} 9. Ngf3 {[%clk 0:02:07]}  e5 {[%clk 0:01:52]} 10. Qe2 {[%clk 0:01:50]}  O-O {[%clk 0:01:35]} 11. Nxe5 {[%clk 0:01:44]}  Qh4+ {[%clk 0:00:55]} 12. g3 {[%clk 0:01:38]}  Nxg3 {[%clk 0:00:55]} 13. hxg3 {[%clk 0:01:29]}  Qxh1 {[%clk 0:00:56]} 14. Bf4 {[%clk 0:01:16]}  Bxd4 {[%clk 0:00:53]} 15. cxd4 {[%clk 0:01:17]}  Bh3 {[%clk 0:00:34]} 16. O-O-O {[%clk 0:01:14]}  Bxf1 {[%clk 0:00:34]} 17. Rxf1 {[%clk 0:01:15]}  Qd5 {[%clk 0:00:35]} 18. Ng4 {[%clk 0:00:52]}  Nd7 {[%clk 0:00:28]} 19. Kb1 {[%clk 0:00:26]}  Qf5+ {[%clk 0:00:27]} 20. Ka1 {[%clk 0:00:26]}  Rfe8 {[%clk 0:00:27]} 21. Be5 {[%clk 0:00:26]}  Qg6 {[%clk 0:00:24]} 22. Qf3 {[%clk 0:00:24]}  h5 {[%clk 0:00:19]} 23. Ne3 {[%clk 0:00:21]}  Nxe5 {[%clk 0:00:19]} 24. dxe5 {[%clk 0:00:22]}  Rxe5 {[%clk 0:00:19]} 25. Nc4 {[%clk 0:00:20]}  Re6 {[%clk 0:00:20]} 26. a3 {[%clk 0:00:18]}  Rf6 {[%clk 0:00:19]} 27. Qg2 {[%clk 0:00:17]}  Rxf1+ {[%clk 0:00:19]} 28. Qxf1 {[%clk 0:00:18]}  Qxg3 {[%clk 0:00:19]} 29. Qh1 {[%clk 0:00:17]}  h4 {[%clk 0:00:19]} 30. Qxb7 {[%clk 0:00:17]}  Re8 {[%clk 0:00:17]} 31. Qd7 {[%clk 0:00:17]}  Qe1+ {[%clk 0:00:17]} 32. Ka2 {[%clk 0:00:17]}  Qe6 {[%clk 0:00:18]} 33. Qb5 {[%clk 0:00:15]}  h3 {[%clk 0:00:17]} 34. b3 {[%clk 0:00:15]}  Qe2+ {[%clk 0:00:17]} 0-1


[Site "https://www.chess.com"]

[Event "Titled Tuesday Blitz September 13 Early 2022"]
[White "Demchenko, Anton"]
[Black "Shuvalova, Polina"]
[WhiteFideId "4160258"]
[BlackFideId "24171760"]
[WhiteElo "2539"]
[BlackElo "2330"]
[Result "1-0"]
[Round "07"]
[TimeControl "180+1"]
[Date "2022.09.13"]
[WhiteClock "0:00:25"]
[BlackClock "0:00:02"]

1. e4 {[%clk 0:03:00]}  c6 {[%clk 0:02:59]} 2. d4 {[%clk 0:03:00]}  d5 {[%clk 0:03:00]} 3. e5 {[%clk 0:03:00]}  Bf5 {[%clk 0:02:59]} 4. Bd3 {[%clk 0:03:01]}  Bxd3 {[%clk 0:02:59]} 5. Qxd3 {[%clk 0:03:02]}  e6 {[%clk 0:03:00]} 6. Ne2 {[%clk 0:03:03]}  c5 {[%clk 0:02:58]} 7. c3 {[%clk 0:03:03]}  Nc6 {[%clk 0:02:58]} 8. O-O {[%clk 0:03:03]}  Rc8 {[%clk 0:02:53]} 9. a3 {[%clk 0:03:03]}  Qb6 {[%clk 0:02:49]} 10. b4 {[%clk 0:02:56]}  cxd4 {[%clk 0:02:49]} 11. cxd4 {[%clk 0:02:57]}  a6 {[%clk 0:02:49]} 12. Nbc3 {[%clk 0:02:57]}  Nge7 {[%clk 0:02:44]} 13. Rd1 {[%clk 0:02:16]}  Nf5 {[%clk 0:02:26]} 14. Nxd5 {[%clk 0:02:13]}  Qb5 {[%clk 0:02:13]} 15. Qxb5 {[%clk 0:01:56]}  axb5 {[%clk 0:02:12]} 16. Ne3 {[%clk 0:01:57]}  Nxe3 {[%clk 0:02:08]} 17. fxe3 {[%clk 0:01:57]}  Be7 {[%clk 0:02:05]} 18. Bd2 {[%clk 0:01:56]}  Bg5 {[%clk 0:01:58]} 19. Rac1 {[%clk 0:01:47]}  Kd7 {[%clk 0:01:53]} 20. Nc3 {[%clk 0:01:47]}  Na7 {[%clk 0:01:44]} 21. Ne4 {[%clk 0:01:44]}  Be7 {[%clk 0:01:45]} 22. Kf2 {[%clk 0:01:44]}  h5 {[%clk 0:01:37]} 23. Ke2 {[%clk 0:01:43]}  f5 {[%clk 0:01:34]} 24. exf6 {[%clk 0:01:42]}  gxf6 {[%clk 0:01:35]} 25. Be1 {[%clk 0:01:30]}  b6 {[%clk 0:01:20]} 26. Rxc8 {[%clk 0:01:15]}  Nxc8 {[%clk 0:01:16]} 27. d5 {[%clk 0:01:13]}  e5 {[%clk 0:01:10]} 28. Bh4 {[%clk 0:00:59]}  f5 {[%clk 0:00:58]} 29. Bxe7 {[%clk 0:00:59]}  Nxe7 {[%clk 0:00:37]} 30. Nc3 {[%clk 0:00:56]}  Rg8 {[%clk 0:00:32]} 31. Kf2 {[%clk 0:00:56]}  Rc8 {[%clk 0:00:31]} 32. Nxb5 {[%clk 0:00:50]}  Rc2+ {[%clk 0:00:31]} 33. Kg1 {[%clk 0:00:49]}  Re2 {[%clk 0:00:27]} 34. d6 {[%clk 0:00:46]}  Nc8 {[%clk 0:00:24]} 35. Rc1 {[%clk 0:00:44]}  Rxe3 {[%clk 0:00:18]} 36. Rc7+ {[%clk 0:00:43]}  Kd8 {[%clk 0:00:18]} 37. Rh7 {[%clk 0:00:43]}  Rd3 {[%clk 0:00:15]} 38. Rxh5 {[%clk 0:00:40]}  Rd5 {[%clk 0:00:12]} 39. a4 {[%clk 0:00:39]}  e4 {[%clk 0:00:06]} 40. g4 {[%clk 0:00:38]}  Rd1+ {[%clk 0:00:06]} 41. Kf2 {[%clk 0:00:39]}  fxg4 {[%clk 0:00:06]} 42. Ke2 {[%clk 0:00:32]}  Rb1 {[%clk 0:00:05]} 43. Rh8+ {[%clk 0:00:30]}  Kd7 {[%clk 0:00:05]} 44. Rh7+ {[%clk 0:00:31]}  Kd8 {[%clk 0:00:05]} 45. Ke3 {[%clk 0:00:24]}  Rxb4 {[%clk 0:00:05]} 46. Nd4 {[%clk 0:00:25]}  Rxa4 {[%clk 0:00:02]} 47. Nc6+ {[%clk 0:00:24]}  Ke8 {[%clk 0:00:02]} 48. d7+ {[%clk 0:00:25]} 1-0


[Site "https://www.chess.com"]

[Event "Titled Tuesday Blitz September 13 Early 2022"]
[White "Fernandez Guillen, Ernesto J."]
[Black "Turutin, Alexander"]
[WhiteFideId "3512428"]
[BlackFideId "4180623"]
[WhiteElo "2422"]
[BlackElo "2402"]
[Result "1-0"]
[Round "07"]
[TimeControl "180+1"]
[Date "2022.09.13"]
[WhiteClock "0:02:04"]
[BlackClock "0:00:51"]

1. e4 {[%clk 0:03:00]}  c6 {[%clk 0:02:59]} 2. d4 {[%clk 0:03:00]}  d5 {[%clk 0:03:00]} 3. e5 {[%clk 0:03:00]}  c5 {[%clk 0:03:00]} 4. dxc5 {[%clk 0:03:01]}  e6 {[%clk 0:02:59]} 5. a3 {[%clk 0:03:02]}  Bxc5 {[%clk 0:02:59]} 6. Qg4 {[%clk 0:03:01]}  Ne7 {[%clk 0:02:58]} 7. b4 {[%clk 0:03:01]}  Bb6 {[%clk 0:02:58]} 8. Nf3 {[%clk 0:03:01]}  O-O {[%clk 0:02:30]} 9. Bd3 {[%clk 0:02:57]}  Ng6 {[%clk 0:02:00]} 10. Qh5 {[%clk 0:02:40]}  Nd7 {[%clk 0:01:57]} 11. Bb2 {[%clk 0:02:39]}  f5 {[%clk 0:01:40]} 12. Ng5 {[%clk 0:02:35]}  h6 {[%clk 0:01:07]} 13. Nxe6 {[%clk 0:02:35]}  Bxf2+ {[%clk 0:01:04]} 14. Kf1 {[%clk 0:02:23]}  Qb6 {[%clk 0:00:52]} 15. Qxg6 {[%clk 0:02:08]}  Rf7 {[%clk 0:00:51]} 16. Nf4 {[%clk 0:02:04]} 1-0


[Site "https://www.chess.com"]